[Event "IND-ch Women 2019"]
[Site "Karaikkudi"]
[Date "2019.07.22"]
[Round "6.7"]
[White "Thipsay, Bagyashree Sathe"]
[Black "Michelle Catherina, P."]
[Result "0-1"]
[ECO "C55"]
[WhiteElo "2093"]
[BlackElo "2226"]
[Annotator "NA"]
[PlyCount "106"]
[EventDate "2019.07.19"]
[EventType "swiss"]
[EventCountry "IND"]
[SourceTitle "playchess.com"]
[Source "ChessBase"]
[SourceQuality "1"]
[TimeControl "40/5400+30:1800+30"]

1. e4 {[%emt 0:00:52]} e5 {[%emt 0:02:11]} 2. Nf3 {[%emt 0:00:07]} Nc6 {[%emt 0:00:04]} 3. Bc4 {[%emt 0:00:05]} Nf6 {[%emt 0:00:04]} 4. d3 {[%emt 0:00:05]} h6 {[%emt 0:00:05]} 5. O-O {[%emt 0:07:01]} d6 {[%emt 0:00:06]} 6. c3 {[%emt 0:02:02]} g6 {[%emt 0:00:24]} 7. Re1 {[%emt 0:02:44]} Bg7 {[%emt 0:00:22]} 8. Nbd2 {[%emt 0:04:19]} O-O {[%emt 0:01:13]} 9. Bb3 {[%emt 0:03:45]} Re8 $11 {[%emt 0:08:30]} 10. h3 {[%emt 0:09:15]} Be6 {[%emt 0:05:39]} 11. Ba4 {[%emt 0:11:18]} Nd7 {[%emt 0:08:50]} 12. Nf1 {[%emt 0:07:30]} Nb6 {[%emt 0:04:38]} 13. Bc2 {[%emt 0:01:45]} d5 {[%emt 0:04:50]} 14. Ne3 {[%emt 0:11:26]} f5 {[%emt 0:06:43]} 15. exd5 {[%emt 0:09:00]} Nxd5 {[%emt 0:05:14]} 16. Bb3 {[%emt 0:08:22]} Kh7 {[%emt 0:06:46]} 17. d4 {[%emt 0:03:31]} e4 {[%emt 0:11:44]} 18. Nd2 {[%emt 0:02:10]} Bg8 {[%emt 0:07:37]} 19. Nxd5 {[%emt 0:04:48]} Bxd5 {[%emt 0:00:02]} 20. Nf1 {[%emt 0:00:10]} b6 {[%emt 0:05:12]} 21. f3 {[%emt 0:01:16]} Na5 {[%emt 0:07:01]} 22. Bxd5 {[%emt 0:02:38]} Qxd5 {[%emt 0:00:07]} 23. Ne3 {[%emt 0:03:10]} Qd7 {[%emt 0:04:17]} 24. f4 {[%emt 0:00:27]} Rad8 {[%emt 0:03:11]} 25. Qe2 {[%emt 0:00:23]} c5 {[%emt 0:02:45]} 26. d5 {[%emt 0:01:15]} c4 {[%emt 0:01:36]} 27. Rd1 {[%emt 0:00:12]} b5 {[%emt 0:01:07]} 28. Nc2 {[%emt 0:00:23]} Qf7 {[%emt 0:01:29]} 29. Be3 {[%emt 0:00:51]} Rxd5 {[%emt 0:00:45]} 30. Rxd5 {[%emt 0:00:48]} Qxd5 {[%emt 0:00:01]} 31. Bxa7 {[%emt 0:00:44]} Qd3 {[%emt 0:01:04]} 32. Kf1 {[%emt 0:00:06]} Nc6 {[%emt 0:01:19]} 33. Be3 {[%emt 0:00:09]} Ra8 {[%emt 0:00:56]} 34. a3 {[%emt 0:00:31]} b4 {[%emt 0:00:31]} 35. cxb4 {[%emt 0:02:40]} Bxb2 {[%emt 0:00:16]} 36. Rd1 {[%emt 0:00:01]} Qb3 {[%emt 0:00:44]} 37. Rd6 {[%emt 0:01:08]} Rc8 {[%emt 0:00:29]} 38. Qd1 {[%emt 0:00:57]} Bg7 {[%emt 0:00:34]} 39. Rd7 {[%emt 0:00:15]} Rd8 {[%emt 0:00:28]} 40. Rxd8 {[%emt 0:00:00]} Nxd8 {[%emt 0:00:00]} 41. b5 {[%emt 0:10:22]} Nb7 {[%emt 0:09:34]} 42. b6 {[%emt 0:01:06]} c3 {[%emt 0:03:14]} 43. Kf2 {[%emt 0:03:10]} Na5 {[%emt 0:03:34]} 44. Qe2 {[%emt 0:03:26]} Nc4 {[%emt 0:07:21]} 45. Nb4 {[%emt 0:05:43]} Nxe3 {[%emt 0:03:19]} 46. Qxe3 {[%emt 0:00:23]} Qxa3 {[%emt 0:02:08]} 47. Qc5 {[%emt 0:02:51]} c2 {[%emt 0:01:27]} 48. Qxc2 {[%emt 0:00:07]} Qxb4 {[%emt 0:00:14]} 49. Qc7 {[%emt 0:00:06]} Qd2+ {[%emt 0:02:36]} 50. Kg3 {[%emt 0:00:08]} e3 {[%emt 0:00:21]} 51. b7 {[%emt 0:00:59]} e2 {[%emt 0:00:06]} 52. b8=Q {[%emt 0:00:06]} e1=Q+ {[%emt 0:00:11]} 53. Kh2 {[%emt 0:00:05]} Qe4 {[%emt 0:01:12]} 0-1

[Event "IND-ch Women 2019"]
[Site "Karaikkudi"]
[Date "2019.07.22"]
[Round "6.8"]
[White "Swati Ghate"]
[Black "Ramaswamy, Aarthie"]
[Result "1-0"]
[ECO "B31"]
[WhiteElo "2192"]
[BlackElo "2020"]
[Annotator "NA"]
[PlyCount "59"]
[EventDate "2019.07.19"]
[EventType "swiss"]
[EventCountry "IND"]
[SourceTitle "playchess.com"]
[Source "ChessBase"]
[SourceQuality "1"]
[TimeControl "40/5400+30:1800+30"]

1. e4 {[%emt 1:30:30]} c5 {[%emt 0:00:05]} 2. Nf3 {[%emt 0:00:00]} Nc6 {[%emt 0:00:07]} 3. Bb5 {[%emt 0:00:00]} g6 {[%emt 0:07:55]} 4. Bxc6 {[%emt 0:00:00]} dxc6 {[%emt 0:03:04]} 5. d3 {[%emt 0:00:00]} Bg7 {[%emt 0:01:11]} 6. h3 {[%emt 0:00:00]} e5 {[%emt 0:02:04]} 7. O-O {[%emt 0:00:00]} Ne7 {[%emt 0:07:50]} 8. Be3 {[%emt 0:00:00]} b6 {[%emt 0:00:13]} 9. a3 $11 {[%emt 0:00:00]} O-O {[%emt 0:04:15]} 10. b4 {[%emt 0:00:00]} cxb4 {[%emt 0:01:12]} 11. axb4 {[%emt 0:00:00]} Qc7 {[%emt 1:07:34]} 12. Nc3 {[%emt 0:00:00]} h6 {[%emt 0:00:00]} 13. Ra3 {[%emt 0:00:00]} Be6 {[%emt 0:00:00]} 14. Qa1 {[%emt 0:00:00]} Nc8 {[%emt 0:00:00]} 15. Re1 {[%emt 0:00:00]} Qe7 {[%emt 0:00:00]} 16. d4 {[%emt 0:00:00]} exd4 {[%emt 0:00:00]} 17. Bxd4 {[%emt 0:00:00]} Bxd4 {[%emt 0:00:00]} 18. Nxd4 {[%emt 0:00:00]} Qxb4 {[%emt 0:00:00]} 19. Nf5 {[%emt 0:00:00]} Bxf5 {[%emt 0:00:00]} 20. exf5 {[%emt 0:00:00]} Qd4 {[%emt 0:00:00]} 21. fxg6 {[%emt 0:00:00]} fxg6 {[%emt 0:00:00]} 22. Qa2+ {[%emt 0:00:00]} Kg7 {[%emt 0:02:39]} 23. Ne4 {[%emt 0:00:00]} Qe5 {[%emt 0:00:15]} 24. Rd3 {[%emt 0:00:00]} Ne7 {[%emt 0:02:15]} 25. Rd7 {[%emt 0:04:22]} Rf7 {[%emt 0:00:01]} 26. Re3 {[%emt 0:06:56]} Qf4 {[%emt 0:01:22]} 27. Rf3 {[%emt 0:00:59]} Qc1+ {[%emt 0:00:39]} 28. Kh2 {[%emt 0:00:05]} Raf8 {[%emt 0:00:36]} 29. Qe6 {[%emt 0:00:37]} Nf5 {[%emt 0:00:38]} 30. Qf6+ {[%emt 0:00:18]} 1-0

[Event "IND-ch Women 2019"]
[Site "Karaikkudi"]
[Date "2019.07.22"]
[Round "6.9"]
[White "Priyanka Nutakki"]
[Black "Meenal Gupta"]
[Result "1-0"]
[ECO "E14"]
[WhiteElo "2293"]
[BlackElo "2004"]
[Annotator "NA"]
[PlyCount "59"]
[EventDate "2019.07.19"]
[EventType "swiss"]
[EventCountry "IND"]
[SourceTitle "playchess.com"]
[Source "ChessBase"]
[SourceQuality "1"]
[TimeControl "40/5400+30:1800+30"]

1. c4 {[%emt 0:00:00]} c5 {[%emt 0:00:00]} 2. Nc3 {[%emt 0:00:01]} b6 {[%emt 0:00:00]} 3. Nf3 {[%emt 0:00:09]} Bb7 {[%emt 0:00:00]} 4. e3 {[%emt 0:00:14]} Nf6 {[%emt 0:02:54]} 5. d4 {[%emt 0:00:16]} e6 {[%emt 0:05:19]} 6. d5 {[%emt 0:00:21]} exd5 {[%emt 0:00:38]} 7. cxd5 {[%emt 0:00:07]} d6 {[%emt 0:00:29]} 8. e4 {[%emt 0:01:05]} Nbd7 {[%emt 0:01:37]} 9. Bd3 {[%emt 0:00:37]} a6 {[%emt 0:03:09]} 10. a4 {[%emt 0:00:10]} g6 {[%emt 0:03:21]} 11. O-O {[%emt 0:00:20]} Qc7 {[%emt 0:01:57]} 12. h3 {[%emt 0:03:21]} Bg7 {[%emt 0:00:42]} 13. Bf4 {[%emt 0:02:03]} O-O {[%emt 0:01:30]} 14. Nd2 $14 {[%emt 0:01:04]} Ne5 {[%emt 0:08:00]} 15. Be2 {[%emt 0:09:52]} Ne8 {[%emt 0:06:50]} 16. Bh2 {[%emt 0:02:55]} f5 {[%emt 0:00:38]} 17. f4 {[%emt 0:07:01]} Nd7 {[%emt 0:00:07]} 18. exf5 {[%emt 0:01:56]} Rxf5 {[%emt 0:00:12]} 19. Bg4 {[%emt 0:00:41]} Rf8 {[%emt 0:01:56]} 20. Be6+ {[%emt 0:00:23]} Kh8 {[%emt 0:00:07]} 21. Nde4 {[%emt 0:04:18]} c4 {[%emt 0:14:34]} 22. f5 {[%emt 0:03:49]} Nc5 {[%emt 0:14:39]} 23. fxg6 {[%emt 0:17:39]} Nxe6 {[%emt 0:08:18]} 24. dxe6 {[%emt 0:00:15]} Qc6 {[%emt 0:00:13]} 25. Qh5 {[%emt 0:10:01]} h6 {[%emt 0:00:16]} 26. Rxf8+ {[%emt 0:00:38]} Bxf8 {[%emt 0:00:03]} 27. Rf1 {[%emt 0:00:08]} Bg7 {[%emt 0:02:24]} 28. Rf7 {[%emt 0:03:11]} b5 {[%emt 0:05:07]} 29. Qf5 {[%emt 0:03:49]} Nf6 {[%emt 0:04:10]} 30. Qxf6 {[%emt 0:00:45]} 1-0

[Event "IND-ch Women 2019"]
[Site "Karaikkudi"]
[Date "2019.07.22"]
[Round "6.10"]
[White "Mohota, Nisha"]
[Black "Bala Kannamma P"]
[Result "1/2-1/2"]
[ECO "A47"]
[WhiteElo "2221"]
[BlackElo "2051"]
[Annotator "NA"]
[PlyCount "61"]
[EventDate "2019.07.19"]
[EventType "swiss"]
[EventCountry "IND"]
[SourceTitle "playchess.com"]
[Source "ChessBase"]
[SourceQuality "1"]
[TimeControl "40/5400+30:1800+30"]

1. d4 {[%emt 0:00:00]} Nf6 {[%emt 0:00:00]} 2. Nf3 {[%emt 0:00:04]} b6 {[%emt 0:01:05]} 3. e3 {[%emt 0:00:47]} Bb7 {[%emt 0:00:25]} 4. Bd3 {[%emt 0:00:08]} g6 {[%emt 0:01:51]} 5. c4 {[%emt 0:00:41]} Bg7 {[%emt 0:01:03]} 6. O-O {[%emt 0:05:20]} O-O {[%emt 0:00:25]} 7. d5 {[%emt 0:02:21]} c6 {[%emt 0:04:35]} 8. e4 {[%emt 0:01:09]} cxd5 {[%emt 0:00:33]} 9. cxd5 {[%emt 0:01:27]} d6 {[%emt 0:00:31]} 10. Nc3 {[%emt 0:01:44]} Nbd7 {[%emt 0:01:20]} 11. Re1 $11 {[%emt 0:05:57]} Rc8 {[%emt 0:07:18]} 12. Bg5 {[%emt 0:04:29]} a6 {[%emt 0:04:44]} 13. a4 {[%emt 0:05:16]} Ng4 {[%emt 0:05:41]} 14. Rc1 {[%emt 0:05:50]} Nge5 {[%emt 0:01:08]} 15. Nxe5 {[%emt 0:00:38]} Nxe5 {[%emt 0:00:32]} 16. Bf1 {[%emt 0:00:36]} Nd7 {[%emt 0:18:15]} 17. Qb3 {[%emt 0:06:14]} Nc5 {[%emt 0:04:03]} 18. Qa3 {[%emt 0:00:48]} h6 {[%emt 0:03:24]} 19. Bd2 {[%emt 0:03:02]} a5 {[%emt 0:07:36]} 20. b4 {[%emt 0:08:02]} axb4 {[%emt 0:01:30]} 21. Qxb4 {[%emt 0:00:04]} Ba6 {[%emt 0:00:27]} 22. Re3 {[%emt 0:07:45]} Bxf1 {[%emt 0:00:22]} 23. Kxf1 {[%emt 0:00:14]} h5 {[%emt 0:01:49]} 24. Rb1 {[%emt 0:05:10]} Ra8 {[%emt 0:12:06]} 25. Qxb6 {[%emt 0:06:04]} Qxb6 {[%emt 0:00:50]} 26. Rxb6 {[%emt 0:00:02]} Nxa4 {[%emt 0:01:23]} 27. Nxa4 {[%emt 0:00:27]} Rxa4 {[%emt 0:00:08]} 28. Re1 {[%emt 0:03:08]} Bf6 {[%emt 0:03:31]} 29. g3 {[%emt 0:05:34]} Rc8 {[%emt 0:00:25]} 30. Rb4 {[%emt 0:04:11]} Rxb4 {[%emt 0:03:08]} 31. Bxb4 {[%emt 0:00:05]} 1/2-1/2

[Event "IND-ch Women 2019"]
[Site "Karaikkudi"]
[Date "2019.07.22"]
[Round "6.11"]
[White "Bakshi, Rutuja"]
[Black "Priyanka, Kumari"]
[Result "1/2-1/2"]
[ECO "E62"]
[WhiteElo "1958"]
[BlackElo "1991"]
[Annotator "NA"]
[PlyCount "61"]
[EventDate "2019.07.19"]
[EventType "swiss"]
[EventCountry "IND"]
[SourceTitle "playchess.com"]
[Source "ChessBase"]
[SourceQuality "1"]
[TimeControl "40/5400+30:1800+30"]

1. d4 {[%emt 0:00:00]} Nf6 {[%emt 0:00:12]} 2. Nf3 {[%emt 0:00:00]} g6 {[%emt 0:00:16]} 3. g3 {[%emt 0:00:08]} Bg7 {[%emt 0:00:46]} 4. Bg2 {[%emt 0:00:05]} d6 {[%emt 0:00:21]} 5. O-O {[%emt 0:00:11]} O-O {[%emt 0:00:18]} 6. c4 {[%emt 0:00:06]} Nc6 {[%emt 0:01:51]} 7. Nc3 {[%emt 0:00:09]} Bg4 {[%emt 0:00:26]} 8. d5 {[%emt 0:08:51]} Na5 {[%emt 0:02:12]} 9. Qd3 {[%emt 0:11:30]} c5 {[%emt 0:04:44]} 10. h3 {[%emt 0:01:03]} Bd7 {[%emt 0:15:38]} 11. e4 {[%emt 0:05:11]} a6 {[%emt 0:06:27]} 12. Bd2 {[%emt 0:17:07]} b5 {[%emt 0:04:51]} 13. b3 {[%emt 0:01:18]} Rb8 {[%emt 0:02:46]} 14. Rae1 {[%emt 0:06:45]} e5 {[%emt 0:25:39]} 15. dxe6 {[%emt 0:21:45]} Bxe6 {[%emt 0:00:43]} 16. Nd5 {[%emt 0:02:06]} Nxd5 {[%emt 0:05:23]} 17. cxd5 {[%emt 0:02:46]} Bd7 {[%emt 0:01:06]} 18. Bf4 {[%emt 0:04:46]} c4 {[%emt 0:07:58]} 19. Qc2 {[%emt 0:02:08]} cxb3 {[%emt 0:01:52]} 20. axb3 {[%emt 0:00:02]} Qb6 {[%emt 0:01:00]} 21. e5 {[%emt 0:02:22]} Bf5 {[%emt 0:02:53]} 22. Qd1 {[%emt 0:00:11]} dxe5 {[%emt 0:02:05]} 23. Bxe5 {[%emt 0:01:25]} Bxe5 {[%emt 0:00:31]} 24. Nxe5 {[%emt 0:00:25]} Rbc8 {[%emt 0:01:14]} 25. b4 {[%emt 0:00:46]} Nc4 {[%emt 0:03:04]} 26. Nc6 {[%emt 0:00:34]} Rce8 {[%emt 0:04:53]} 27. Qa1 {[%emt 0:08:18]} Bd3 {[%emt 0:01:48]} 28. Rxe8 {[%emt 0:00:40]} Rxe8 {[%emt 0:00:08]} 29. Re1 {[%emt 0:00:22]} Rxe1+ {[%emt 0:01:07]} 30. Qxe1 {[%emt 0:00:01]} Qc7 {[%emt 0:00:24]} 31. Qe8+ {[%emt 0:00:41]} 1/2-1/2

[Event "IND-ch Women 2019"]
[Site "Karaikkudi"]
[Date "2019.07.22"]
[Round "6.12"]
[White "Sanskriti Goyal"]
[Black "Harshita Guddanti"]
[Result "0-1"]
[ECO "A01"]
[WhiteElo "1948"]
[BlackElo "2078"]
[Annotator "NA"]
[PlyCount "64"]
[EventDate "2019.07.19"]
[EventType "swiss"]
[EventCountry "IND"]
[SourceTitle "playchess.com"]
[Source "ChessBase"]
[SourceQuality "1"]
[TimeControl "40/5400+30:1800+30"]

1. b3 {[%emt 0:00:00]} e5 {[%emt 0:00:00]} 2. Bb2 {[%emt 0:00:00]} Nc6 {[%emt 0:00:06]} 3. c4 {[%emt 0:00:36]} Nf6 {[%emt 0:00:51]} 4. e3 {[%emt 0:00:19]} d5 {[%emt 0:01:07]} 5. cxd5 {[%emt 0:00:07]} Nxd5 {[%emt 0:00:05]} 6. a3 {[%emt 0:00:14]} Bd6 {[%emt 0:00:46]} 7. Qc2 {[%emt 0:00:08]} O-O {[%emt 0:00:59]} 8. Nf3 {[%emt 0:00:07]} Qe7 {[%emt 0:00:45]} 9. d3 {[%emt 0:00:13]} f5 {[%emt 0:01:03]} 10. Nbd2 {[%emt 0:00:10]} Kh8 {[%emt 0:01:10]} 11. g3 {[%emt 0:06:01]} f4 {[%emt 0:11:48]} (11... e4 $5 {[%cal Re4f3]} 12. dxe4 fxe4 13. Qxe4 Qxe4 14. Nxe4 Rxf3 15. Nxd6 Nxe3 16. fxe3 cxd6 $11) 12. gxf4 $1 {[%emt 0:01:47]} exf4 {[%emt 0:01:47]} 13. e4 {[%emt 0:00:17]} Ne3 $11 {[%emt 0:02:45]} 14. Qc3 {[%emt 0:00:13]} Nxf1 {[%emt 0:01:55]} 15. Rxf1 {[%emt 0:01:12]} Bd7 {[%emt 0:17:50]} 16. Rg1 {[%emt 0:04:50]} Rg8 {[%emt 0:01:32]} 17. Kd1 {[%emt 0:24:17]} b5 {[%emt 0:11:12]} 18. e5 {[%emt 0:05:15]} b4 {[%emt 0:02:24]} 19. axb4 {[%emt 0:00:34]} Bxb4 {[%emt 0:01:46]} 20. Qc4 {[%emt 0:02:07]} Na5 {[%emt 0:14:36]} 21. Rxa5 {[%emt 0:24:55]} Bxa5 {[%emt 0:00:50]} 22. Ng5 {[%emt 0:00:02]} Raf8 {[%emt 0:09:40]} 23. Ndf3 {[%emt 0:10:03]} Rf5 {[%emt 0:04:48]} 24. e6 {[%emt 0:01:48]} Be8 {[%emt 0:01:08]} 25. h4 {[%emt 0:06:07]} Bh5 {[%emt 0:03:17]} 26. Qe4 {[%emt 0:01:12]} Qc5 {[%emt 0:04:24]} 27. Be5 {[%emt 0:06:15]} Qxf2 {[%emt 0:02:21]} 28. b4 {[%emt 0:03:26]} Qxg1+ {[%emt 0:00:16]} 29. Kc2 {[%emt 0:00:01]} Qg2+ {[%emt 0:02:00]} 30. Kc3 {[%emt 0:00:46]} Rxg5 {[%emt 0:01:02]} 31. Nxg5 {[%emt 0:00:48]} Qxe4 {[%emt 0:00:03]} 32. dxe4 {[%emt 0:00:17]} Bb6 {[%emt 0:00:20]} 0-1

[Event "IND-ch Women 2019"]
[Site "Karaikkudi"]
[Date "2019.07.22"]
[Round "6.14"]
[White "Mahalakshmi D M"]
[Black "Potluri Supreetha"]
[Result "1-0"]
[ECO "E91"]
[WhiteElo "2227"]
[BlackElo "1873"]
[Annotator "NA"]
[PlyCount "129"]
[EventDate "2019.07.19"]
[EventType "swiss"]
[EventCountry "IND"]
[SourceTitle "playchess.com"]
[Source "ChessBase"]
[SourceQuality "1"]
[TimeControl "40/5400+30:1800+30"]

1. d4 {[%emt 0:00:00]} Nf6 {[%emt 0:00:00]} 2. c4 {[%emt 0:00:00]} g6 {[%emt 0:00:00]} 3. Nc3 {[%emt 0:00:00]} Bg7 {[%emt 0:00:00]} 4. e4 {[%emt 0:00:12]} d6 {[%emt 0:00:00]} 5. Nf3 {[%emt 0:00:16]} O-O {[%emt 0:00:16]} 6. Be2 {[%emt 0:00:41]} Bg4 {[%emt 0:00:16]} 7. h3 {[%emt 0:01:41]} Bxf3 {[%emt 0:00:12]} 8. Bxf3 {[%emt 0:00:05]} Nc6 {[%emt 0:00:14]} 9. d5 {[%emt 0:01:10]} Na5 {[%emt 0:00:12]} 10. Be2 {[%emt 0:01:26]} b6 {[%emt 0:00:19]} 11. O-O {[%emt 0:00:44]} e5 {[%emt 0:05:16]} (11... Nb7 $14) 12. Bg5 {[%emt 0:02:27]} h6 {[%emt 0:05:18]} 13. Be3 {[%emt 0:00:03]} Nd7 {[%emt 0:00:49]} 14. b4 {[%emt 0:02:19]} Nb7 {[%emt 0:00:11]} 15. Qd2 {[%emt 0:02:23]} Kh7 {[%emt 0:00:42]} 16. Rab1 $16 {[%emt 0:01:31]} Qe7 {[%emt 0:13:03]} 17. Bd3 {[%emt 0:01:51]} Nf6 {[%emt 0:23:56]} 18. a3 {[%emt 0:04:33]} Nh5 {[%emt 0:06:56]} 19. Ne2 {[%emt 0:06:23]} Rae8 {[%emt 0:06:15]} 20. Ng3 {[%emt 0:07:35]} Qh4 {[%emt 0:11:28]} 21. Nxh5 {[%emt 0:01:16]} Qxh5 {[%emt 0:00:28]} 22. c5 {[%emt 0:00:46]} dxc5 {[%emt 0:01:02]} 23. bxc5 {[%emt 0:00:25]} f5 {[%emt 0:02:25]} 24. f3 {[%emt 0:04:23]} f4 {[%emt 0:08:12]} 25. Bf2 {[%emt 0:00:53]} g5 {[%emt 0:00:15]} 26. Ba6 {[%emt 0:04:07]} Nxc5 {[%emt 0:08:00]} 27. Bxc5 {[%emt 0:00:26]} bxc5 {[%emt 0:00:02]} 28. Rb7 {[%emt 0:00:51]} Qg6 {[%emt 0:05:30]} 29. Bc4 {[%emt 0:00:46]} Qd6 {[%emt 0:02:33]} 30. Qa5 {[%emt 0:00:41]} a6 {[%emt 0:00:36]} 31. Rxc7 {[%emt 0:02:17]} Rc8 {[%emt 0:00:28]} 32. Rb7 {[%emt 0:05:34]} Rf6 {[%emt 0:00:27]} 33. Rfb1 {[%emt 0:01:04]} Qd8 {[%emt 0:00:32]} 34. Qxd8 {[%emt 0:08:13]} Rxd8 {[%emt 0:00:01]} 35. Rc7 {[%emt 0:00:41]} Kg6 {[%emt 0:00:55]} 36. Rbb7 {[%emt 0:03:57]} Bf8 {[%emt 0:00:32]} 37. Ra7 {[%emt 0:00:50]} Rdd6 {[%emt 0:00:34]} 38. Rxc5 {[%emt 0:03:54]} Rb6 {[%emt 0:00:29]} 39. Ra5 {[%emt 0:02:15]} Rb1+ {[%emt 0:00:31]} 40. Kh2 {[%emt 0:00:00]} Rc1 {[%emt 0:00:00]} 41. Rc7 {[%emt 0:06:29]} Ra1 {[%emt 0:18:47]} 42. Bxa6 {[%emt 0:14:24]} Rxa3 {[%emt 0:01:38]} 43. Bb5 {[%emt 0:01:57]} h5 {[%emt 0:03:46]} 44. Be8+ {[%emt 0:03:07]} Kh6 {[%emt 0:00:12]} 45. Rb5 {[%emt 0:01:28]} g4 {[%emt 0:07:17]} 46. hxg4 {[%emt 0:06:46]} hxg4 {[%emt 0:00:02]} 47. Rc6 {[%emt 0:03:36]} g3+ {[%emt 0:02:10]} 48. Kh3 {[%emt 0:00:06]} Bd6 {[%emt 0:00:38]} 49. Kg4 {[%emt 0:02:02]} Ra8 {[%emt 0:00:28]} 50. Rbb6 {[%emt 0:02:25]} Rd8 {[%emt 0:00:25]} 51. Kh4 {[%emt 0:05:13]} Kg7 {[%emt 0:00:37]} 52. Kg5 {[%emt 0:00:56]} Rxe8 {[%emt 0:00:26]} 53. Rxd6 {[%emt 0:00:36]} Rxd6 {[%emt 0:00:33]} 54. Rxd6 {[%emt 0:00:03]} Ra8 {[%emt 0:00:24]} 55. Rd7+ {[%emt 0:02:23]} Kf8 {[%emt 0:00:05]} 56. Kf6 {[%emt 0:00:32]} Ke8 {[%emt 0:00:09]} 57. Rh7 {[%emt 0:00:17]} Ra2 {[%emt 0:00:18]} 58. Ke6 {[%emt 0:01:41]} Kf8 {[%emt 0:00:26]} 59. d6 {[%emt 0:00:15]} Kg8 {[%emt 0:00:59]} 60. Rc7 {[%emt 0:00:57]} Rxg2 {[%emt 0:00:04]} 61. Rc8+ {[%emt 0:00:16]} Kg7 {[%emt 0:00:05]} 62. d7 {[%emt 0:00:05]} Rd2 {[%emt 0:00:06]} 63. d8=Q {[%emt 0:00:14]} Rxd8 {[%emt 0:00:03]} 64. Rxd8 {[%emt 0:00:04]} g2 {[%emt 0:00:04]} 65. Rd1 {[%emt 0:00:05]} 1-0

[Event "IND-ch Women 2019"]
[Site "Karaikkudi"]
[Date "2019.07.22"]
[Round "6.15"]
[White "Chitlange Sakshi"]
[Black "Sunyuktha C M N"]
[Result "1/2-1/2"]
[ECO "D02"]
[WhiteElo "2168"]
[BlackElo "1815"]
[Annotator "NA"]
[PlyCount "89"]
[EventDate "2019.07.19"]
[EventType "swiss"]
[EventCountry "IND"]
[SourceTitle "playchess.com"]
[Source "ChessBase"]
[SourceQuality "1"]
[TimeControl "40/5400+30:1800+30"]

1. d4 {[%emt 0:00:00]} d5 {[%emt 0:00:00]} 2. Bf4 {[%emt 0:00:00]} Nf6 {[%emt 0:01:07]} 3. e3 {[%emt 0:00:00]} e6 {[%emt 0:13:39]} 4. Nd2 {[%emt 0:02:47]} c5 {[%emt 0:01:33]} 5. c3 {[%emt 0:00:06]} Nc6 {[%emt 0:00:15]} 6. Ngf3 {[%emt 0:00:06]} Bd6 {[%emt 0:02:22]} 7. Bg3 {[%emt 0:00:06]} O-O {[%emt 0:00:24]} 8. Bb5 $11 {[%emt 0:00:05]} cxd4 {[%emt 0:29:54]} 9. Bxd6 {[%emt 0:15:59]} Qxd6 {[%emt 0:01:16]} 10. cxd4 {[%emt 0:00:05]} Bd7 {[%emt 0:02:23]} 11. O-O {[%emt 0:01:19]} Rac8 {[%emt 0:01:01]} 12. a3 {[%emt 0:03:25]} Rc7 {[%emt 0:08:40]} 13. Bd3 {[%emt 0:04:27]} Rfc8 {[%emt 0:05:14]} 14. Nb3 {[%emt 0:01:46]} e5 {[%emt 0:05:31]} 15. dxe5 {[%emt 0:03:57]} Nxe5 {[%emt 0:00:05]} 16. Nbd4 {[%emt 0:01:31]} Ne4 {[%emt 0:13:37]} 17. Nxe5 {[%emt 0:08:39]} Qxe5 {[%emt 0:00:06]} 18. Qe2 {[%emt 0:02:12]} Nc5 {[%emt 0:03:44]} 19. Rac1 {[%emt 0:05:31]} Ne6 {[%emt 0:01:20]} 20. Rxc7 {[%emt 0:05:28]} Rxc7 {[%emt 0:00:39]} 21. Nf3 {[%emt 0:04:12]} Qf6 {[%emt 0:01:11]} 22. Qd2 {[%emt 0:04:02]} b6 {[%emt 0:03:36]} 23. Bb1 {[%emt 0:03:14]} Bb5 {[%emt 0:03:00]} 24. Rd1 {[%emt 0:03:43]} Ba4 {[%emt 0:00:18]} 25. Re1 {[%emt 0:01:02]} g6 {[%emt 0:00:20]} 26. h3 {[%emt 0:07:53]} h5 {[%emt 0:01:09]} 27. Kh1 {[%emt 0:02:23]} Kg7 {[%emt 0:00:25]} 28. Re2 {[%emt 0:05:27]} Bb3 {[%emt 0:00:21]} 29. Re1 {[%emt 0:03:12]} a5 {[%emt 0:00:40]} 30. Rc1 {[%emt 0:05:21]} Rxc1+ {[%emt 0:00:17]} 31. Qxc1 {[%emt 0:00:01]} d4 {[%emt 0:00:21]} 32. e4 {[%emt 0:05:47]} Qd8 {[%emt 0:00:21]} 33. Qd2 {[%emt 0:00:17]} Qd6 {[%emt 0:00:39]} 34. Qd3 {[%emt 0:00:58]} a4 {[%emt 0:00:28]} 35. Qd2 {[%emt 0:00:29]} Qc5 {[%emt 0:00:20]} 36. Bd3 {[%emt 0:00:36]} Bc4 {[%emt 0:00:36]} 37. Bc2 {[%emt 0:00:27]} b5 {[%emt 0:00:32]} 38. Bb1 {[%emt 0:00:23]} Bb3 {[%emt 0:00:35]} 39. Ne1 {[%emt 0:00:25]} Bc4 {[%emt 0:00:37]} 40. f4 {[%emt 0:00:00]} Qd6 {[%emt 0:00:00]} 41. f5 {[%emt 0:06:57]} Nc5 {[%emt 0:05:31]} 42. Qb4 {[%emt 0:07:31]} Qc7 {[%emt 0:23:31]} 43. Qd2 {[%emt 0:03:11]} Qd6 {[%emt 0:01:18]} 44. Qb4 {[%emt 0:00:05]} Qc7 {[%emt 0:00:11]} 45. Qd2 {[%emt 0:00:36]} 1/2-1/2

[Event "IND-ch Women 2019"]
[Site "Karaikkudi"]
[Date "2019.07.22"]
[Round "6.16"]
[White "Parnali, S Dharia"]
[Black "Sheena, E.."]
[Result "1-0"]
[ECO "E67"]
[WhiteElo "2145"]
[BlackElo "1763"]
[Annotator "NA"]
[PlyCount "69"]
[EventDate "2019.07.19"]
[EventType "swiss"]
[EventCountry "IND"]
[SourceTitle "playchess.com"]
[Source "ChessBase"]
[SourceQuality "1"]
[TimeControl "40/5400+30:1800+30"]

1. Nf3 {[%emt 0:00:00]} Nf6 {[%emt 1:30:30]} 2. c4 {[%emt 0:00:05]} g6 {[%emt 0:00:00]} 3. Nc3 {[%emt 0:00:35]} Bg7 {[%emt 0:00:00]} 4. d4 {[%emt 0:00:33]} d6 {[%emt 0:00:00]} 5. g3 {[%emt 0:01:54]} O-O {[%emt 0:00:00]} 6. Bg2 {[%emt 0:00:17]} Nbd7 {[%emt 0:00:00]} 7. O-O {[%emt 0:00:22]} Re8 {[%emt 0:00:00]} 8. h3 {[%emt 0:01:04]} Nf8 {[%emt 0:00:00]} 9. e4 {[%emt 0:01:45]} N6d7 {[%emt 0:00:00]} 10. Be3 {[%emt 0:00:55]} e5 {[%emt 0:00:00]} 11. d5 {[%emt 0:06:09]} h6 $16 {[%emt 0:00:00]} 12. b4 {[%emt 0:07:11]} f5 {[%emt 0:00:00]} 13. Rc1 {[%emt 0:00:36]} Nb6 {[%emt 0:00:00]} 14. Qd3 {[%emt 0:01:55]} a5 {[%emt 0:00:00]} 15. a3 {[%emt 0:26:09]} axb4 {[%emt 0:00:00]} 16. axb4 {[%emt 0:00:02]} Ra3 {[%emt 0:00:00]} 17. Qe2 {[%emt 0:01:05]} f4 {[%emt 0:00:00]} 18. Bxb6 {[%emt 0:00:12]} cxb6 {[%emt 0:00:00]} 19. Nb5 {[%emt 0:01:01]} Ra8 {[%emt 0:00:00]} 20. c5 {[%emt 0:02:44]} bxc5 {[%emt 0:00:00]} 21. bxc5 {[%emt 0:00:09]} dxc5 {[%emt 0:00:00]} 22. Rxc5 {[%emt 0:01:02]} b6 {[%emt 0:00:00]} 23. Rc6 {[%emt 0:02:50]} Bd7 {[%emt 0:00:00]} 24. Rc2 {[%emt 0:03:19]} Bxb5 {[%emt 0:00:00]} 25. Qxb5 {[%emt 0:00:05]} Nd7 {[%emt 0:00:00]} 26. Nh4 {[%emt 0:03:02]} g5 {[%emt 0:00:00]} 27. Nf5 {[%emt 0:00:21]} Nc5 {[%emt 0:00:00]} 28. Rb1 {[%emt 0:01:32]} Rb8 {[%emt 0:00:00]} 29. Ra1 {[%emt 0:05:10]} Rf8 {[%emt 0:00:00]} 30. Ra7 {[%emt 0:00:30]} Rf7 {[%emt 0:00:00]} 31. Rca2 {[%emt 0:00:46]} Rbb7 {[%emt 0:00:00]} 32. Ra8 {[%emt 0:00:33]} Rb8 {[%emt 0:00:00]} 33. Qc6 {[%emt 0:00:22]} Rfb7 {[%emt 0:00:00]} 34. Rxb8 {[%emt 0:11:59]} Rxb8 {[%emt 0:00:00]} 35. Ra7 {[%emt 0:00:15]} 1-0